bitfinex-derivatives/quotes_SOLF0:USTF0_20260312
["timestamp","ask_amount","ask_price","bid_price","bid_amount"]
[1773345966717,3.39111554,86.86,86.816,6.64385281]
[1773345967827,3.39111554,86.88,86.821,6.64415052]
[1773345968218,3.39111554,86.87,86.821,6.64415052]
[1773345968920,3.39111554,86.88,86.83,3.39111554]
[1773345969225,3.39111554,86.89,86.841,6.64415052]
[1773345969527,10.356,86.886,86.85,3.39111554]
[1773345969729,3.39111554,86.91,86.861,6.6944075]
[1773345970027,10.356,86.891,86.861,6.6944075]
[1773345971721,34.57,86.914,86.828,6.68663058]
[1773345971927,3.39111554,86.89,86.831,6.68663058]
[1773345972523,3.39111554,86.89,86.839,6.68663058]
[1773345972729,3.39111554,86.89,86.841,6.68663058]
[1773345974033,10.357,86.883,86.841,6.68663058]
[1773345974225,3.39111554,86.89,86.841,6.68663058]
[1773345975031,10.357,86.877,86.842,6.71757714]
[1773345976326,34.57,86.91,86.851,6.71835214]
[1773345976623,3.39111554,86.9,86.851,6.71835214]
[1773345978119,10.356,86.887,86.851,6.71835214]
[1773345979027,10.357,86.881,86.841,6.71844196]
[1773345979329,3.39111554,86.89,86.841,6.71844196]
[1773345981037,10.358,86.874,86.841,6.71844196]
[1773345987432,3.39111554,86.87,86.829,6.74792186]
[1773345987631,34.57,86.896,86.829,6.74792186]
[1773345987833,3.39111554,86.87,86.829,6.74792186]
[1773345988032,3.39111554,86.88,86.829,6.74792186]
[1773345988837,10.359,86.866,86.829,6.74792186]
[1773345992239,10.359,86.866,86.831,6.75265429]
[1773345996844,10.36,86.859,86.831,6.75265429]
[1773345997042,10.36,86.859,86.825,10.364]
[1773345997944,10.36,86.853,86.82,6.75148916]
[1773345998538,3.39111554,86.84,86.776,6.75148916]
[1773345998735,3.39111554,86.8,86.75,6.75148916]
[1773345999038,3.39111554,86.8,86.744,36.26]
[1773345999039,3.39111554,86.83,86.781,6.75148916]
[1773345999242,36.26,86.859,86.791,6.74842609]
[1773345999437,3.39111554,86.85,86.791,6.74842609]
[1773346000943,10.362,86.838,86.794,6.74842609]
[1773346003840,3.39111554,86.84,86.797,6.73123663]
[1773346004046,10.361,86.846,86.801,6.73123663]
[1773346004640,3.39111554,86.86,86.811,6.73123663]
[1773346005548,10.36,86.858,86.811,6.73123663]
[1773346006345,3.39111554,86.84,86.792,6.73102156]
[1773346007242,34.57,86.875,86.792,6.73102156]
[1773346007441,3.39111554,86.84,86.792,6.73102156]
[1773346007643,3.39111554,86.83,86.792,6.73102156]
[1773346007841,3.39111554,86.83,86.781,6.73214306]
[1773346008043,3.39111554,86.82,86.781,6.73214306]
[1773346008346,3.39111554,86.81,86.768,6.73214306]
[1773346009549,10.366,86.807,86.768,6.73214306]
[1773346009751,3.39111554,86.8,86.753,6.73108586]
[1773346010048,13.75811554,86.8,86.756,6.73108586]
[1773346010549,10.367,86.8,86.756,6.73108586]
[1773346013550,13.75811554,86.8,86.756,6.73108586]
[1773346016746,3.39111554,86.79,86.742,6.72921749]
[1773346017747,10.368,86.788,86.742,6.72921749]
[1773346018454,3.39111554,86.79,86.744,6.72873345]
[1773346018651,10.367,86.796,86.744,6.72873345]
[1773346019652,10.368,86.789,86.748,6.72384563]
[1773346021753,36.28,86.812,86.725,36.28]
[1773346021754,3.39111554,86.8,86.751,6.7240567]
[1773346021951,10.67701062,86.859,86.671,28.10225963]
[1773346021952,3.39111554,86.84,86.791,6.7240567]
[1773346022154,3.39111554,86.85,86.791,6.7240567]
[1773346023249,3.39111554,86.83,86.78,3.39111554]
[1773346023559,43.67038047,86.84,86.772,6.72395628]
[1773346023752,10.365,86.81,86.772,6.72395628]
[1773346024154,36.28,86.833,86.741,6.72395628]
[1773346024357,34.57,86.832,86.741,6.72395628]
[1773346024752,10.366,86.803,86.76,6.72395628]
[1773346029554,9.10038047,86.8,86.744,6.75511211]
[1773346029754,34.57,86.799,86.713,6.75511211]
[1773346029956,34.57,86.797,86.713,6.75511211]
[1773346030854,10.37,86.769,86.722,6.75511211]
[1773346031963,20.73,86.817,86.69,22.7634254]
[1773346031964,34.57,86.799,86.725,6.76445021]
[1773346032261,36.28,86.828,86.741,6.76445021]
[1773346033057,34.57,86.827,86.741,6.76445021]
[1773346033863,10.366,86.803,86.758,10.372]
[1773346034163,34.57,86.827,86.741,6.76445021]
[1773346035865,10.367,86.796,86.743,6.76382332]
[1773346036167,34.57,86.809,86.743,6.76382332]
[1773346036964,10.368,86.79,86.745,10.373]
[1773346041166,10.369,86.784,86.745,10.373]
[1773346047265,3.39934437,86.78,86.73,6.75215249]
[1773346047761,3.39934437,86.78,86.731,6.75215249]
[1773346048973,10.37,86.773,86.731,6.75215249]
[1773346049168,3.39934437,86.78,86.731,6.75215249]
[1773346049972,3.39934437,86.77,86.731,6.75215249]
[1773346050372,3.39934437,86.78,86.731,6.75215249]
[1773346050871,10.37,86.768,86.731,6.75215249]
[1773346053067,3.39934437,86.78,86.726,36.28]
[1773346053271,3.39934437,86.77,86.718,10.376]
[1773346053471,3.39934437,86.77,86.718,17.11626065]
[1773346053672,3.39934437,86.77,86.718,6.74026065]
[1773346053875,10.372,86.758,86.718,6.74026065]
[1773346054568,10.372,86.758,86.721,6.74026065]
[1773346055575,10.372,86.758,86.72,3.39934437]
[1773346056071,10.372,86.758,86.715,10.377]
[1773346056072,3.39934437,86.75,86.709,6.73862569]
[1773346056272,3.39934437,86.77,86.721,6.73862569]
[1773346057178,34.57,86.782,86.721,6.73862569]
[1773346057371,3.39934437,86.77,86.721,6.73862569]
[1773346059375,10.371,86.763,86.721,6.73862569]
[1773346061878,10.372,86.756,86.721,6.73862569]
[1773346064979,10.373,86.747,86.709,6.67369027]
[1773346065182,3.39934437,86.76,86.709,6.67369027]
[1773346065479,3.39934437,86.73,86.691,6.67436116]
[1773346065684,10.375,86.726,86.691,6.67436116]
[1773346066374,10.375,86.726,86.683,6.67436116]
[1773346066685,10.375,86.726,86.684,17.05436116]
[1773346068083,10.375,86.726,86.687,6.67808808]
[1773346068878,10.375,86.726,86.691,6.67808808]
[1773346071288,10.375,86.734,86.691,6.67808808]
[1773346072888,10.375,86.734,86.693,6.67862468]
[1773346073991,10.375,86.728,86.693,6.67862468]
[1773346077592,10.374,86.734,86.693,6.67862468]
[1773346081791,10.374,86.734,86.694,6.69002976]
[1773346081989,3.39934437,86.78,86.721,6.69002976]
[1773346082190,21.20696952,86.838,86.671,34.57]
[1773346082191,3.39934437,86.79,86.731,6.69002976]
[1773346082997,10.37,86.773,86.731,6.69002976]
[1773346085098,3.39934437,86.77,86.714,6.70146743]
[1773346085299,3.39934437,86.77,86.721,6.66153256]
[1773346085596,3.400543,86.78,86.721,6.66153256]
[1773346085797,3.400543,86.77,86.721,6.66153256]
[1773346086896,34.57,86.793,86.731,6.66153256]
[1773346086897,3.400543,86.78,86.731,6.66153256]
[1773346087091,3.400543,86.79,86.731,6.66153256]
[1773346087788,3.400543,86.78,86.731,6.66153256]
[1773346088287,10.37,86.773,86.731,6.66153256]
[1773346089390,10.371,86.767,86.731,6.66153256]
[1773346093194,3.400543,86.75,86.705,6.6814814]
[1773346093395,3.400543,86.73,86.693,6.6814814]
[1773346093897,3.400543,86.75,86.701,6.6814814]
[1773346094098,3.400543,86.76,86.711,6.6814814]
[1773346095800,10.373,86.749,86.711,6.6814814]
[1773346097194,3.400543,86.77,86.715,6.70943109]
[1773346097604,3.400543,86.77,86.721,6.70943109]
[1773346098698,10.372,86.759,86.721,6.70943109]
[1773346101606,3.400543,86.75,86.709,6.70928008]
[1773346101907,3.400543,86.76,86.709,6.70928008]
[1773346102107,10.373,86.751,86.709,6.70928008]
[1773346108507,10.372,86.758,86.712,6.71998117]
[1773346110010,10.372,86.758,86.715,6.72022695]
[1773346110905,10.372,86.758,86.718,6.72022695]
[1773346111809,10.371,86.765,86.721,6.71496261]
[1773346112111,3.400543,86.76,86.721,6.71496261]
[1773346113013,3.400543,86.76,86.723,6.71496261]
[1773346113613,10.371,86.765,86.726,6.71346577]
[1773346113813,3.400543,86.78,86.726,6.71346577]
[1773346114308,3.400543,86.8,86.743,6.71346577]
[1773346115109,3.400543,86.79,86.743,6.71346577]
[1773346115706,10.369,86.784,86.745,10.373]
[1773346115913,36.28,86.812,86.743,6.71346577]
[1773346115914,3.400543,86.78,86.743,6.71346577]
[1773346117010,10.369,86.779,86.743,6.71346577]
[1773346123016,10.37,86.77,86.743,6.71346577]
[1773346123513,3.400543,86.78,86.743,6.71346577]
[1773346124917,10.369,86.777,86.743,6.71346577]
[1773346129319,34.57,86.799,86.743,6.71346577]
[1773346129519,3.400543,86.79,86.743,6.71346577]
[1773346130912,3.400543,86.8,86.743,6.71346577]
[1773346131114,36.28,86.812,86.761,6.7017552]
[1773346131317,3.400543,86.83,86.78,3.400543]
[1773346131621,3.400543,86.83,86.781,6.70184403]
[1773346131823,10.363,86.828,86.781,6.70184403]
[1773346132118,37.970543,86.84,86.79,3.400543]
[1773346132319,3.400543,86.84,86.791,6.70184403]
[1773346132718,10.362,86.837,86.791,6.70184403]
[1773346133422,10.363,86.83,86.791,6.70184403]
[1773346135119,10.363,86.83,86.78,3.400543]
[1773346135120,3.400543,86.84,86.766,36.28]
[1773346135324,36.28,86.865,86.773,6.66165697]
[1773346135325,3.400543,86.83,86.773,6.66165697]
[1773346135825,10.364,86.821,86.776,6.66165697]
[1773346136225,10.364,86.821,86.781,6.66165697]
[1773346137818,3.400543,86.83,86.781,6.66165697]
[1773346138025,3.400543,86.84,86.791,6.63117068]
[1773346138423,3.400543,86.85,86.791,6.63117068]
[1773346138923,10.362,86.839,86.791,6.63117068]
[1773346139122,3.400543,86.84,86.791,6.63117068]
[1773346139917,10.363,86.833,86.791,6.63117068]
[1773346140326,36.26,86.858,86.801,6.62866307]
[1773346140525,10.362,86.841,86.801,6.62866307]
[1773346143023,10.363,86.833,86.801,6.62866307]
[1773346145729,10.365,86.815,86.787,6.68704235]
[1773346145920,10.365,86.815,86.771,6.68704235]
[1773346146819,10.364,86.823,86.773,6.68704235]
[1773346147524,10.365,86.817,86.776,6.68088099]
[1773346148228,3.39537909,86.82,86.776,6.68088099]
[1773346149025,10.367,86.8,86.776,6.68088099]
[1773346150736,3.39537909,86.82,86.776,6.68088099]
[1773346151836,10.365,86.816,86.776,6.68088099]
[1773346154936,10.365,86.816,86.778,6.67440308]
[1773346155540,3.39537909,86.82,86.78,6.67885637]
[1773346155732,10.364,86.823,86.78,6.67885637]
[1773346155927,3.39537909,86.83,86.79,6.67885637]
[1773346156127,3.39537909,86.84,86.791,6.67885637]
[1773346156730,3.39537909,86.84,86.79,3.39537909]
[1773346156731,10.362,86.838,86.796,6.67885637]
[1773346156936,10.362,86.838,86.8,3.39537909]
[1773346157131,10.362,86.838,86.801,6.67885637]
[1773346157731,10.361,86.846,86.804,6.67983519]
[1773346158833,10.361,86.846,86.808,10.366]
[1773346159835,10.361,86.846,86.808,17.04775801]
[1773346161738,3.39537909,86.83,86.787,6.675545]
[1773346162151,3.39537909,86.84,86.787,6.675545]
[1773346162838,36.28,86.88,86.762,20.743]
[1773346162839,10.361,86.847,86.791,6.675545]
[1773346163843,36.28,86.88,86.799,6.66634761]
[1773346163844,3.39537909,86.84,86.799,6.66634761]
[1773346164044,3.39537909,86.83,86.799,6.66634761]
[1773346166640,13.75837909,86.83,86.799,6.66634761]
[1773346170649,10.362,86.837,86.799,6.66634761]
[1773346171839,10.362,86.837,86.801,6.67450954]
[1773346173048,10.362,86.837,86.803,6.67450954]
[1773346173944,10.361,86.847,86.806,6.67452569]
[1773346174546,3.39537909,86.84,86.806,6.67452569]
[1773346176244,3.39537909,86.84,86.807,10.366]
[1773346178252,3.39537909,86.84,86.807,17.05192225]
[1773346180546,3.39537909,86.84,86.807,6.68592225]
[1773346181851,3.39537909,86.84,86.807,17.05192225]
[1773346182353,10.361,86.848,86.808,6.6951349]
[1773346182551,3.39537909,86.85,86.813,6.6951349]
[1773346183457,13.75637909,86.85,86.813,6.6951349]
[1773346186558,3.39537909,86.84,86.799,6.69586444]
[1773346187563,3.39537909,86.84,86.802,6.69538961]
[1773346187967,10.362,86.838,86.802,6.69538961]
[1773346188560,3.39537909,86.84,86.802,6.69538961]
[1773346191268,3.39537909,86.84,86.809,6.6904812]
[1773346195372,10.36,86.852,86.81,10.365]
[1773346195573,3.39537909,86.85,86.809,6.6904812]
[1773346196572,3.39537909,86.84,86.809,6.6904812]
[1773346200374,3.39537909,86.84,86.81,6.66687999]
[1773346200572,10.361,86.848,86.81,6.66687999]
[1773346200875,3.39537909,86.87,86.811,6.66687999]
[1773346201174,3.39537909,86.87,86.827,10.363]
[1773346201379,3.39537909,86.87,86.828,6.66687999]
[1773346202867,3.39537909,86.86,86.811,6.62260112]
[1773346203074,3.39537909,86.84,86.79,3.39537909]
[1773346203276,3.39537909,86.83,86.799,6.62260112]
[1773346203480,3.39537909,86.81,86.777,6.62967873]
[1773346203674,0.00037909,86.81,86.777,6.62967873]
[1773346203874,3.39537909,86.84,86.781,6.62967873]
[1773346204182,3.39537909,86.84,86.791,6.62967873]
[1773346204880,13.75637909,86.85,86.803,6.62967873]
[1773346205583,3.39502157,86.84,86.803,6.62967873]
[1773346206982,10.362,86.839,86.803,6.62967873]
[1773346209684,10.361,86.847,86.803,6.62967873]
[1773346211084,10.362,86.841,86.803,6.62967873]
[1773346212186,3.39502157,86.85,86.803,6.62967873]
[1773346212187,10.362,86.835,86.803,6.62967873]
[1773346212389,3.39502157,86.83,86.792,6.66052878]
[1773346212684,3.39502157,86.82,86.78,6.66052878]
[1773346213681,3.39502157,86.81,86.765,6.66296468]
[1773346214886,10.366,86.809,86.765,6.66296468]
[1773346216490,3.39502157,86.81,86.74,21.1389944]
[1773346216491,3.39502157,86.79,86.752,6.68680642]
[1773346217890,10.368,86.787,86.752,6.68680642]
[1773346218590,10.368,86.787,86.741,10.374]
[1773346218991,10.368,86.787,86.744,6.68069339]
[1773346220288,13.76402157,86.78,86.744,6.68069339]
[1773346223597,3.39502157,86.78,86.744,6.68069339]
[1773346224591,3.39502157,86.77,86.726,6.70887588]
[1773346224792,3.39502157,86.76,86.726,6.70887588]
[1773346225989,13.76602157,86.76,86.726,6.70887588]
[1773346226294,3.39502157,86.78,86.726,6.70887588]
[1773346227895,3.39502157,86.77,86.728,6.7122134]
[1773346228898,3.39502157,86.77,86.729,17.0872134]
[1773346229297,3.39502157,86.77,86.73,6.7122134]
[1773346232296,13.76502157,86.77,86.73,6.7122134]
[1773346233200,3.39502157,86.76,86.73,6.7122134]
[1773346234202,10.371,86.764,86.73,6.7122134]
[1773346237401,3.39502157,86.75,86.704,6.68586521]
[1773346238699,3.39502157,86.73,86.704,6.68586521]
[1773346238904,3.39502157,86.73,86.693,6.68586521]
[1773346239100,3.39502157,86.72,86.68,36.28]
[1773346239305,3.39502157,86.72,86.681,6.68586521]
[1773346240406,10.378,86.709,86.681,6.68586521]
[1773346240611,10.378,86.709,86.636,20.773]
[1773346240612,34.57,86.742,86.637,6.66231422]
[1773346240811,3.39502157,86.71,86.661,6.66231422]
[1773346241307,10.377,86.717,86.663,6.66836663]
[1773346241511,3.39502157,86.72,86.671,6.66836663]
[1773346241914,10.378,86.707,86.671,6.66836663]
[1773346242411,3.39502157,86.71,86.671,6.66836663]
[1773346243710,10.378,86.709,86.671,6.66836663]
[1773346247322,3.39502157,86.73,86.671,6.66836663]
[1773346247518,3.39502157,86.7,86.658,6.70476606]
[1773346247722,3.39502157,86.71,86.658,6.70476606]
[1773346248118,3.39502157,86.72,86.666,6.70476606]
[1773346248317,3.39502157,86.74,86.681,6.70476606]
[1773346249021,3.39502157,86.74,86.683,6.70476606]
[1773346251121,10.374,86.738,86.687,6.655961]
[1773346252124,10.375,86.731,86.687,6.655961]
[1773346252721,10.375,86.729,86.687,6.655961]
[1773346257824,3.39502157,86.75,86.691,6.6515018]
[1773346258628,3.39502157,86.74,86.691,6.6515018]
[1773346259921,3.39502157,86.74,86.696,6.65337457]
[1773346260121,3.39502157,86.73,86.696,6.65337457]
[1773346260323,3.39502157,86.73,86.683,6.65337457]
[1773346260825,3.39502157,86.72,86.683,6.65337457]
[1773346261531,10.376,86.721,86.683,6.65337457]
[1773346263326,10.377,86.717,86.683,6.65337457]
[1773346263525,3.39502157,86.71,86.672,6.65273819]
[1773346264122,3.39502157,86.73,86.672,6.65273819]
[1773346264523,10.375,86.729,86.687,10.38]
[1773346264727,3.39502157,86.7,86.651,6.65273819]
[1773346264923,3.39502157,86.69,86.651,6.65273819]
[1773346266029,10.379,86.698,86.654,6.66499355]
[1773346266829,10.379,86.698,86.655,10.384]
[1773346267030,36.28,86.729,86.655,6.66499355]
[1773346267031,3.39502157,86.69,86.655,6.66499355]
[1773346267629,3.40773803,86.68,86.641,6.58295396]
[1773346268333,3.40773803,86.68,86.644,6.58295396]
[1773346268835,3.40773803,86.66,86.621,6.58295396]
[1773346269033,3.40773803,86.67,86.625,6.58295396]
[1773346270836,3.40773803,86.68,86.635,6.5825737]
[1773346271539,3.40773803,86.68,86.638,6.62649369]
[1773346272139,3.40773803,86.68,86.64,6.62649369]
[1773346272440,10.381,86.679,86.64,6.62649369]
[1773346272640,3.40773803,86.67,86.64,6.62649369]
[1773346273442,3.40773803,86.66,86.625,6.6178911]
[1773346274836,3.40773803,86.65,86.625,6.6178911]
[1773346275337,3.40773803,86.67,86.625,6.6178911]
[1773346275837,10.382,86.669,86.628,6.59505873]
[1773346276238,3.40773803,86.66,86.628,6.59505873]
[1773346277038,3.40773803,86.67,86.628,6.59505873]
[1773346277837,3.40773803,86.67,86.628,10.387]
[1773346278040,3.40773803,86.66,86.629,6.60231404]
[1773346278238,3.40773803,86.66,86.616,6.60231404]
[1773346278442,3.40773803,86.65,86.616,6.60231404]
[1773346279335,3.40773803,86.64,86.616,6.60231404]
[1773346280439,13.79273803,86.65,86.616,6.60231404]
[1773346280643,10.385,86.643,86.604,6.6039553]
[1773346280849,3.40773803,86.64,86.604,6.6039553]
[1773346281344,3.40773803,86.63,86.604,6.6039553]
[1773346282738,10.386,86.639,86.604,6.6039553]
[1773346282937,10.386,86.639,86.595,6.56519929]
[1773346283242,3.40773803,86.61,86.575,6.56519929]
[1773346283647,3.40773803,86.6,86.551,6.56437392]
[1773346283845,3.40773803,86.6,86.562,6.56437392]
[1773346284045,10.39,86.604,86.562,6.56437392]
[1773346284246,34.57,86.645,86.571,6.56437392]
[1773346284447,3.40773803,86.62,86.571,6.56437392]
[1773346284649,3.40773803,86.61,86.571,6.56437392]
[1773346285045,20.771,86.646,86.571,6.56437392]
[1773346285046,34.57,86.651,86.571,6.56437392]
[1773346285245,3.40773803,86.63,86.571,6.56437392]
[1773346285645,10.388,86.618,86.573,6.49920868]
[1773346286854,10.388,86.618,86.576,6.49920868]
[1773346287053,3.40773803,86.62,86.576,6.49920868]
[1773346287547,10.387,86.627,86.576,6.49920868]
[1773346287746,10.386,86.635,86.585,6.4738979]
[1773346288348,3.40773803,86.63,86.585,6.4738979]
[1773346288752,10.386,86.635,86.585,6.4738979]
[1773346288951,10.386,86.635,86.572,36.3]
[1773346288952,3.40773803,86.63,86.591,16.8658979]
[1773346289152,10.387,86.629,86.591,6.4738979]
[1773346290750,3.40773803,86.64,86.593,6.46139287]
[1773346290953,3.40773803,86.65,86.601,6.46139287]
[1773346291350,10.385,86.649,86.605,6.45404606]
[1773346292053,10.384,86.656,86.612,6.45404606]
[1773346293256,10.385,86.648,86.612,6.45404606]
[1773346293460,10.385,86.648,86.601,10.39]
[1773346293653,3.40773803,86.64,86.601,10.39]
[1773346294250,3.40773803,86.64,86.598,6.42064583]
[1773346294251,10.386,86.639,86.598,6.42064583]
[1773346294658,3.40773803,86.63,86.586,36.3]
[1773346295855,10.388,86.624,86.586,36.3]
[1773346296258,10.388,86.624,86.586,42.69537086]
[1773346296458,10.388,86.624,86.586,6.39537086]
[1773346297764,10.388,86.618,86.586,6.39537086]
[1773346298558,10.388,86.618,86.572,6.39446267]
[1773346298760,10.389,86.612,86.573,10.394]
[1773346299267,3.40773803,86.61,86.572,6.39446267]
[1773346300262,36.3,86.662,86.55,3.40773803]
[1773346300263,3.40773803,86.6,86.551,6.4173353]
[1773346300568,3.40773803,86.59,86.537,6.4173353]
[1773346300769,3.40773803,86.6,86.551,6.4173353]
[1773346301367,10.392,86.592,86.551,6.4173353]
[1773346301867,3.40773803,86.6,86.554,6.44259094]
[1773346302664,10.391,86.598,86.555,16.83859094]
[1773346302969,3.40773803,86.59,86.556,6.44259094]
[1773346303870,10.392,86.589,86.556,6.44259094]
[1773346304373,3.40773803,86.61,86.556,6.44259094]
[1773346305668,3.40773803,86.63,86.571,6.43274017]
[1773346305870,3.40773803,86.63,86.581,6.43274017]
[1773346306069,175.72670628,86.691,86.581,6.43274017]
[1773346306070,3.40773803,86.64,86.581,6.43274017]
[1773346306266,10.387,86.627,86.584,6.43274017]
[1773346306470,3.40773803,86.63,86.584,6.43274017]
[1773346306871,10.387,86.628,86.584,6.43274017]
[1773346307077,3.40773803,86.62,86.584,6.43274017]
[1773346307376,34.57,86.653,86.57,36.3]
[1773346307682,3.40773803,86.62,86.571,6.43382051]
[1773346308369,10.39,86.607,86.571,6.43382051]
[1773346312083,3.40773803,86.62,86.568,6.35428675]
[1773346312283,3.40773803,86.61,86.568,6.35428675]
[1773346313877,10.39,86.608,86.568,6.35428675]
[1773346314276,3.40773803,86.61,86.568,6.35428675]
[1773346314476,3.40773803,86.6,86.562,36.3]
[1773346314876,3.40773803,86.6,86.554,6.35555628]
[1773346315082,3.40773803,86.59,86.554,6.35555628]
[1773346315283,3.40773803,86.6,86.554,6.35555628]
[1773346315476,3.40773803,86.6,86.541,6.36025195]
[1773346315676,3.40773803,86.59,86.541,6.36025195]
[1773346316076,3.40773803,86.62,86.571,6.36025195]
[1773346316277,3.40773803,86.63,86.571,6.36025195]
[1773346316479,3.40773803,86.63,86.581,6.36025195]
[1773346316879,34.57,86.64,86.581,6.36025195]
[1773346317080,3.40773803,86.63,86.581,6.36025195]
[1773346317577,10.387,86.629,86.588,10.392]
[1773346317786,3.40773803,86.65,86.591,6.39066427]
[1773346318086,3.40773803,86.65,86.593,6.39066427]
[1773346318285,10.386,86.639,86.596,16.78166427]
[1773346318681,10.386,86.639,86.597,6.39066427]
[1773346319184,10.385,86.648,86.601,6.39066427]
[1773346319390,3.40773803,86.67,86.611,6.34335364]
[1773346319689,3.40773803,86.67,86.62,3.40773803]
[1773346320182,10.383,86.665,86.621,6.34335364]
[1773346320386,3.40773803,86.67,86.621,6.34335364]
[1773346320577,3.40773803,86.68,86.621,6.34335364]
[1773346320886,3.40773803,86.68,86.624,6.34335364]
[1773346320887,10.382,86.668,86.624,6.34335364]
[1773346321477,10.382,86.668,86.63,3.40773803]
[1773346321682,10.382,86.668,86.624,6.34335364]
[1773346324082,10.382,86.668,86.621,36.3]
[1773346324083,34.57,86.697,86.629,6.27267451]
[1773346324388,36.3,86.709,86.629,6.27267451]
[1773346324584,43.52816189,86.708,86.629,6.27267451]
[1773346324784,43.52816189,86.707,86.629,6.27267451]
[1773346324986,8.95816189,86.706,86.629,6.27267451]
[1773346325483,34.57,86.705,86.631,6.28973897]
[1773346325688,34.57,86.699,86.631,6.28973897]
[1773346325887,10.382,86.671,86.631,6.28973897]
[1773346330587,10.382,86.671,86.642,0.07274002]
[1773346330895,34.57,86.699,86.642,6.36172184]
[1773346331193,34.57,86.699,86.644,6.28898182]
[1773346331487,9.12875263,86.72,86.646,6.2907842]
[1773346331792,34.63,86.719,86.648,6.2907842]
[1773346332093,34.63,86.717,86.65,6.2907842]
[1773346332892,10.38,86.69,86.65,6.2907842]
[1773346333593,10.38,86.69,86.651,6.26881861]
[1773346335196,10.379,86.699,86.653,6.26881861]
[1773346339694,10.379,86.693,86.653,6.26881861]
[1773346340796,10.378,86.702,86.655,6.26820855]
[1773346341598,10.378,86.702,86.66,3.40567404]
[1773346341798,10.378,86.702,86.66,9.6729941]
[1773346342303,10.378,86.702,86.661,6.26732006]
[1773346346109,10.379,86.695,86.661,6.26732006]
[1773346346507,3.40567404,86.71,86.661,6.26732006]
[1773346348012,10.378,86.702,86.661,6.26732006]
[1773346349013,10.378,86.709,86.671,6.27570231]
[1773346349208,10.378,86.709,86.67,3.40567404]
[1773346349209,10.378,86.709,86.673,6.27570231]
[1773346352209,10.379,86.701,86.673,6.27570231]
[1773346357412,10.379,86.701,86.674,36.28]
[1773346358815,10.378,86.708,86.674,36.28]
[1773346360721,10.378,86.708,86.675,36.28]
[1773346361416,10.378,86.708,86.676,6.22161748]
[1773346361721,10.377,86.716,86.676,6.22161748]
[1773346361920,10.377,86.716,86.678,6.22161748]
[1773346363215,10.377,86.711,86.678,6.22161748]
[1773346368321,10.378,86.706,86.677,36.3]
[1773346369424,10.377,86.713,86.678,6.28496324]
[1773346373131,10.378,86.707,86.678,6.28496324]
[1773346375937,10.378,86.707,86.677,36.3]
[1773346380036,10.378,86.701,86.677,36.3]
[1773346381740,10.379,86.694,86.678,36.3]
[1773346381935,10.379,86.694,86.673,36.3]
[1773346385034,10.379,86.694,86.658,6.16464175]
[1773346385234,10.38,86.688,86.659,36.3]
[1773346386540,10.379,86.695,86.66,6.15243752]
[1773346386739,10.379,86.695,86.662,6.15243752]
[1773346387137,10.38,86.689,86.662,6.15243752]
[1773346395930,10.378,86.702,86.671,6.18321192]
[1773346396135,10.378,86.702,86.671,42.48321192]
[1773346396335,3.40599078,86.71,86.671,42.48321192]
[1773346397944,10.379,86.697,86.671,42.48321192]
[1773346400441,34.63,86.732,86.672,6.19707096]
[1773346400642,3.40599078,86.72,86.672,6.19707096]
[1773346401042,8.84503509,86.729,86.672,6.19707096]
[1773346401240,3.40599078,86.72,86.672,6.19707096]
[1773346401742,3.40599078,86.72,86.674,6.17629894]
[1773346401941,10.377,86.714,86.674,6.17629894]
[1773346402441,3.40599078,86.72,86.674,6.17629894]
[1773346403940,10.378,86.708,86.674,6.17629894]
[1773346408741,10.379,86.695,86.659,6.08880733]
[1773346408948,10.379,86.695,86.661,6.08880733]
[1773346409246,3.40599078,86.71,86.661,6.08880733]
[1773346409839,10.378,86.702,86.661,6.08880733]
[1773346410038,3.40599078,86.7,86.661,6.08880733]
[1773346410749,10.379,86.695,86.661,6.08880733]
[1773346411643,10.378,86.703,86.661,6.08880733]
[1773346412040,3.40599078,86.72,86.671,6.01835919]
[1773346412446,8.84503509,86.729,86.671,6.01835919]
[1773346412750,47.01175869,86.774,86.691,6.01835919]
[1773346412945,3.40599078,86.75,86.693,6.01835919]
[1773346413445,10.375,86.73,86.693,6.01835919]